bitfinex/quotes_BTCUSD_20240613
["timestamp","ask_amount","ask_price","bid_price","bid_amount"]
[1718282827798,0.5888,67736.0,67726.0,0.15]
[1718282828019,0.14431993,67735.0,67724.0,0.05]
[1718282828393,0.31763192,67735.0,67721.0,0.05]
[1718282828599,0.31763192,67735.0,67724.0,0.05]
[1718282828993,0.24431993,67735.0,67724.0,0.05]
[1718282829580,0.24431993,67735.0,67722.0,0.07215996]
[1718282829918,0.24431993,67735.0,67729.0,0.33175996]
[1718282830127,0.24431993,67735.0,67729.0,0.07215996]
[1718282830323,0.24431993,67735.0,67729.0,0.17215996]
[1718282830531,0.01745902,67750.0,67734.0,0.15]
[1718282830747,0.1,67745.0,67734.0,0.15]
[1718282830952,0.14431993,67744.0,67737.0,0.1]
[1718282831170,0.1,67743.0,67736.0,0.1]
[1718282831404,0.14431993,67742.0,67738.0,0.1]
[1718282831646,0.14431993,67742.0,67734.0,0.05]
[1718282831647,0.14431993,67742.0,67736.0,0.1]
[1718282832083,0.14431993,67742.0,67738.0,0.1]
[1718282832294,0.14431993,67742.0,67736.0,0.1]
[1718282832582,0.16055872,67742.0,67738.0,0.1]
[1718282832790,0.15831993,67742.0,67738.0,0.1]
[1718282833133,0.014,67742.0,67741.0,0.11028019]
[1718282833370,0.014,67742.0,67741.0,0.1]
[1718282833798,0.014,67742.0,67741.0,0.11028019]
[1718282834447,0.2222,67759.0,67741.0,0.11028019]
[1718282834448,0.2423,67758.0,67743.0,0.05]
[1718282834647,0.14431993,67753.0,67752.0,0.1]
[1718282835362,0.14431993,67753.0,67748.0,0.1]
[1718282835568,0.14431993,67753.0,67752.0,0.1]
[1718282835802,0.4782,67767.0,67756.0,0.1]
[1718282835933,0.14431993,67761.0,67756.0,0.1]
[1718282836133,0.14431993,67761.0,67759.0,0.1]
[1718282836341,0.14431993,67761.0,67757.0,0.1]
[1718282836547,0.14431993,67761.0,67758.0,0.1]
[1718282837087,0.14431993,67761.0,67760.0,0.1]
[1718282837241,0.14431993,67761.0,67760.0,0.11028019]
[1718282837636,0.3256,67772.0,67761.0,0.11028019]
[1718282837637,0.1,67771.0,67761.0,0.11028019]
[1718282837839,0.14526593,67762.0,67761.0,0.11028019]
[1718282838253,0.15926593,67762.0,67761.0,0.1]
[1718282838650,0.14526593,67762.0,67761.0,0.11028019]
[1718282838852,0.000946,67762.0,67761.0,0.11028019]
[1718282839095,0.000946,67762.0,67761.0,0.21028019]
[1718282839254,0.014946,67762.0,67761.0,0.21028019]
[1718282839651,0.000946,67762.0,67761.0,0.21028019]
[1718282839868,0.000946,67762.0,67761.0,0.22028019]
[1718282840065,0.000946,67762.0,67761.0,0.33657312]
[1718282840280,0.000946,67762.0,67761.0,0.91107312]
[1718282840493,0.000946,67762.0,67761.0,0.90107312]
[1718282841098,0.000946,67762.0,67761.0,0.90079895]
[1718282841300,0.000946,67762.0,67761.0,0.78478019]
[1718282841506,0.014946,67762.0,67761.0,0.78478019]
[1718282841784,0.000946,67762.0,67761.0,0.78478019]
[1718282842341,0.000946,67762.0,67761.0,0.001]
[1718282842342,0.001946,67762.0,67761.0,0.001]
[1718282842541,0.14626593,67762.0,67761.0,0.001]
[1718282842745,0.14626593,67762.0,67752.0,0.1]
[1718282842746,0.21811252,67762.0,67752.0,0.1]
[1718282842954,0.21811252,67762.0,67756.0,0.1]
[1718282842955,0.14431993,67761.0,67756.0,0.1]
[1718282843206,0.000946,67762.0,67760.0,0.1]
[1718282843418,0.000946,67762.0,67761.0,0.1]
[1718282843419,0.014946,67762.0,67761.0,0.1]
[1718282843593,0.014946,67762.0,67760.0,0.1]
[1718282843738,0.014946,67762.0,67761.0,0.1]
[1718282843939,0.014946,67762.0,67760.0,0.1]
[1718282844341,0.014946,67762.0,67761.0,0.11028019]
[1718282844560,0.000946,67762.0,67761.0,0.11028019]
[1718282844957,0.014946,67762.0,67759.0,0.15]
[1718282845174,0.014946,67762.0,67759.0,0.05]
[1718282845393,0.000946,67762.0,67759.0,0.05]
[1718282845599,0.000946,67762.0,67760.0,0.1]
[1718282845829,0.014946,67762.0,67760.0,0.1]
[1718282846257,0.14431993,67761.0,67755.0,0.1]
[1718282846463,0.14431993,67761.0,67760.0,0.1]
[1718282846683,0.014946,67762.0,67761.0,0.1]
[1718282846900,0.014946,67762.0,67761.0,0.11028019]
[1718282847390,0.014946,67762.0,67760.0,0.1]
[1718282847811,0.014946,67762.0,67761.0,0.1]
[1718282848024,0.014946,67762.0,67761.0,0.11028019]
[1718282848237,0.000946,67762.0,67759.0,0.15]
[1718282848493,0.001,67761.0,67759.0,0.05]
[1718282848715,0.001,67761.0,67755.0,0.05]
[1718282848716,0.14431993,67760.0,67755.0,0.05]
[1718282848939,0.14431993,67760.0,67754.0,0.1]
[1718282849152,0.14431993,67760.0,67755.0,0.15]
[1718282849581,0.14431993,67760.0,67756.0,0.1]
[1718282850154,0.000946,67762.0,67761.0,0.11]
[1718282850368,0.000946,67762.0,67761.0,0.1]
[1718282850916,0.000946,67762.0,67761.0,0.11028019]
[1718282851829,0.000946,67762.0,67761.0,0.52368019]
[1718282852040,0.000946,67762.0,67761.0,0.78598019]
[1718282852288,0.000946,67762.0,67761.0,0.79598019]
[1718282852554,0.000946,67762.0,67761.0,1.09580012]
[1718282852788,0.000946,67789.0,67788.0,0.21028019]
[1718282852998,0.000946,67789.0,67788.0,1.12960012]
[1718282853207,0.000946,67789.0,67788.0,1.27960012]
[1718282853431,0.000946,67789.0,67788.0,1.22960012]
[1718282853632,0.000946,67789.0,67788.0,1.07410012]
[1718282855100,0.000946,67789.0,67788.0,1.11659372]
[1718282855984,0.000946,67789.0,67788.0,1.07410012]
[1718282856198,0.001946,67789.0,67788.0,1.07410012]
[1718282856410,0.000946,67789.0,67788.0,1.07410012]
[1718282856826,0.000946,67789.0,67788.0,1.11659372]
[1718282857027,0.001946,67789.0,67788.0,1.07410012]
[1718282858743,0.001946,67789.0,67788.0,1.17410012]
[1718282858908,0.009449,67793.0,67792.0,0.47578019]
[1718282859111,0.009449,67793.0,67792.0,1.30740012]
[1718282859409,0.009449,67793.0,67792.0,1.20740012]
[1718282859609,0.009449,67793.0,67792.0,1.05190012]
[1718282859903,0.009449,67793.0,67792.0,0.89758019]
[1718282860061,0.009449,67793.0,67792.0,1.02890012]
[1718282860270,0.009416,67794.0,67793.0,0.27028019]
[1718282860507,0.009416,67794.0,67793.0,1.17406008]
[1718282860718,0.009416,67794.0,67793.0,1.42956008]
[1718282861236,0.009416,67794.0,67793.0,1.32956008]
[1718282861643,0.009416,67794.0,67793.0,1.42956008]
[1718282862585,0.010416,67794.0,67793.0,1.43156008]
[1718282863206,0.010416,67794.0,67793.0,1.33156008]
[1718282863437,0.010416,67794.0,67793.0,1.43156008]
[1718282863924,0.009416,67794.0,67793.0,1.65146008]
[1718282864354,0.009416,67794.0,67793.0,1.55146008]
[1718282865276,0.009416,67794.0,67793.0,1.27956008]
[1718282865941,0.010416,67794.0,67793.0,1.09406008]
[1718282866420,0.009416,67794.0,67793.0,1.10106008]
[1718282867078,0.010416,67794.0,67793.0,1.10406008]
[1718282867290,0.010416,67794.0,67793.0,1.10106008]
[1718282867291,0.009416,67794.0,67793.0,1.10106008]
[1718282867506,0.009416,67794.0,67793.0,1.65146008]
[1718282867739,0.009427,67796.0,67795.0,0.72578019]
[1718282867943,0.009427,67796.0,67795.0,1.09788019]
[1718282868147,0.009427,67796.0,67795.0,0.89788019]
[1718282869237,0.009427,67796.0,67795.0,1.04220012]
[1718282869411,0.009427,67796.0,67795.0,1.06520012]
[1718282870000,0.009427,67796.0,67795.0,1.27070012]
[1718282870410,0.009427,67796.0,67795.0,1.37070012]
[1718282871026,0.010427,67796.0,67795.0,1.37270012]
[1718282871537,0.009427,67796.0,67795.0,1.51820312]
[1718282871863,0.009427,67796.0,67795.0,1.56820312]
[1718282872072,0.009449,67807.0,67798.0,1.73047619]
[1718282872286,0.009449,67807.0,67798.0,2.21969612]
[1718282872497,0.009449,67807.0,67798.0,2.07220012]
[1718282874075,0.001946,67799.0,67798.0,2.02420012]
[1718282874284,0.001946,67799.0,67798.0,1.67930012]
[1718282874679,0.001946,67799.0,67798.0,1.77930012]
[1718282874878,0.001946,67799.0,67798.0,1.67930012]
[1718282875080,0.001946,67799.0,67798.0,1.85680012]
[1718282875404,0.001946,67799.0,67798.0,0.91380012]
[1718282875614,0.001946,67799.0,67798.0,0.37960012]
[1718282876067,0.001946,67799.0,67798.0,0.21228019]
[1718282876693,0.000946,67799.0,67798.0,0.21028019]
[1718282877114,0.000946,67799.0,67798.0,0.86660012]
[1718282877115,0.001946,67799.0,67798.0,0.86660012]
[1718282877516,0.000946,67799.0,67798.0,0.88760012]
[1718282877895,0.001946,67799.0,67798.0,0.87960012]
[1718282878304,0.000946,67799.0,67798.0,0.87760012]
[1718282878506,0.000946,67799.0,67798.0,0.87960012]
[1718282878708,0.001946,67799.0,67798.0,0.21228019]
[1718282878926,0.001946,67799.0,67798.0,0.71228019]
[1718282879395,0.001946,67799.0,67798.0,0.72228019]
[1718282879598,0.001946,67799.0,67798.0,0.86660012]
[1718282879806,0.001946,67799.0,67798.0,0.88960012]
[1718282880052,0.001946,67799.0,67798.0,1.04510012]
[1718282880203,0.000946,67799.0,67798.0,0.87760012]
[1718282880400,0.000946,67799.0,67798.0,0.37760012]
[1718282880666,0.001946,67799.0,67798.0,0.052]
[1718282880815,0.001946,67799.0,67798.0,0.002]
[1718282880816,0.263446,67799.0,67798.0,0.002]
[1718282881019,0.262446,67799.0,67797.0,0.05]
[1718282881244,0.2896333,67799.0,67795.0,0.05]
[1718282881419,0.45771993,67798.0,67792.0,0.05]
[1718282881856,0.45771993,67798.0,67793.0,0.05]
[1718282882095,0.45771993,67798.0,67793.0,0.12215996]
[1718282882990,0.45771993,67798.0,67797.0,0.15]
[1718282882991,0.3134,67798.0,67797.0,0.15]
[1718282883187,0.3134,67798.0,67797.0,0.21028019]
[1718282883428,0.262446,67799.0,67798.0,0.15028019]
[1718282883631,0.014946,67799.0,67798.0,0.21028019]
[1718282884001,0.000946,67799.0,67798.0,0.21028019]
[1718282885323,0.000946,67799.0,67798.0,0.88760012]
[1718282885523,0.009449,67807.0,67800.0,0.22028019]
[1718282885747,0.009449,67807.0,67800.0,0.38760012]
[1718282885960,0.009449,67807.0,67800.0,0.41053047]
[1718282886385,0.009449,67807.0,67800.0,0.40053047]
[1718282886559,0.009449,67807.0,67800.0,0.41053047]
[1718282886850,0.009449,67807.0,67800.0,0.23321054]
[1718282887063,0.009449,67807.0,67800.0,0.21028019]
[1718282887187,0.010427,67801.0,67800.0,0.21228019]
[1718282887620,0.009427,67801.0,67800.0,0.2]
[1718282887820,0.009427,67801.0,67800.0,0.1]
[1718282888019,0.009427,67801.0,67800.0,0.052]
[1718282888020,0.010427,67801.0,67800.0,0.052]
[1718282888223,0.010427,67801.0,67800.0,0.05]
[1718282888224,0.009427,67801.0,67800.0,0.05]
[1718282888786,0.009427,67801.0,67800.0,0.102]
[1718282888787,0.010427,67801.0,67800.0,0.102]
[1718282889181,0.010427,67801.0,67800.0,0.052]
[1718282889339,0.010427,67801.0,67800.0,0.002]
[1718282890215,0.18453025,67801.0,67792.0,0.05]
[1718282890393,0.3014,67799.0,67792.0,0.05]
[1718282890639,0.14431993,67798.0,67792.0,0.05]
[1718282891808,0.3014,67799.0,67793.0,0.12215996]
[1718282892015,0.44571993,67799.0,67793.0,0.12215996]
[1718282892190,0.014,67798.0,67793.0,0.12215996]
[1718282892392,0.014,67798.0,67796.0,0.1]
[1718282892788,0.014,67798.0,67795.0,0.15]
[1718282893380,0.14431993,67798.0,67792.0,0.05086]
[1718282893585,0.21151263,67798.0,67792.0,0.05086]
[1718282893839,0.22551263,67798.0,67792.0,0.05086]
[1718282894076,0.22551263,67798.0,67792.0,0.15086]
[1718282894263,0.014,67798.0,67797.0,0.1]
[1718282894482,0.014,67798.0,67797.0,0.05]
[1718282894619,0.3014,67799.0,67797.0,0.05]
[1718282895021,0.014,67798.0,67797.0,0.05]
[1718282895247,0.3014,67799.0,67797.0,0.05]
[1718282895440,0.14431993,67798.0,67792.0,0.05086]
[1718282895647,0.14431993,67798.0,67792.0,0.00086]
[1718282897027,0.15831993,67798.0,67792.0,0.00086]
[1718282897649,0.14431993,67798.0,67792.0,0.00086]
[1718282898339,0.15831993,67798.0,67792.0,0.00086]
[1718282898748,0.014,67798.0,67797.0,0.15]
[1718282898954,0.014,67798.0,67797.0,0.05]
[1718282899392,0.014,67798.0,67797.0,0.15]
[1718282899591,0.014,67798.0,67797.0,0.16028019]
[1718282899792,0.014,67798.0,67797.0,0.21028019]
[1718282900643,0.028,67798.0,67797.0,0.21028019]
[1718282900847,0.009427,67801.0,67797.0,0.21028019]
[1718282901068,0.009427,67801.0,67800.0,0.29244015]
[1718282901281,0.009427,67801.0,67800.0,1.02456008]
[1718282902000,0.009449,67807.0,67806.0,0.62578019]
[1718282902211,0.009449,67811.0,67810.0,0.17028019]
[1718282902367,0.009449,67811.0,67810.0,0.58226008]
[1718282902575,0.009449,67811.0,67810.0,0.71526008]
[1718282902977,0.009449,67811.0,67810.0,0.73817584]
[1718282903388,0.009449,67811.0,67810.0,0.71526008]
[1718282903750,0.009449,67811.0,67810.0,0.73817551]
[1718282904820,0.009449,67811.0,67810.0,0.71526008]
[1718282905041,0.010449,67811.0,67810.0,0.74217782]
[1718282905258,0.009449,67811.0,67810.0,0.73817782]
[1718282905492,0.009449,67811.0,67810.0,0.71526008]
[1718282905724,0.009449,67811.0,67810.0,0.73818151]
[1718282905908,0.009449,67811.0,67810.0,0.71526008]
[1718282906351,0.010449,67811.0,67810.0,0.71926008]
[1718282906583,0.010449,67811.0,67810.0,1.43596008]
[1718282906826,0.010449,67811.0,67810.0,1.45888112]
[1718282907056,0.010449,67811.0,67810.0,1.53618112]
[1718282907294,0.010449,67811.0,67810.0,1.48618112]
[1718282907513,0.010449,67811.0,67810.0,1.33596008]
[1718282907734,0.009449,67811.0,67810.0,1.33196008]
[1718282908190,0.010449,67811.0,67810.0,1.33496008]
[1718282908610,0.009449,67811.0,67810.0,1.36475312]
[1718282909055,0.009449,67811.0,67810.0,1.02130012]
[1718282909262,0.010449,67811.0,67810.0,1.03430012]
[1718282909488,0.010449,67811.0,67810.0,1.02430012]
[1718282909924,0.010449,67811.0,67810.0,1.03430012]
[1718282910128,0.010449,67811.0,67810.0,1.23980012]
[1718282910548,0.010449,67811.0,67810.0,1.25621798]
[1718282910777,0.009449,67811.0,67810.0,1.25321798]
[1718282910985,0.009449,67811.0,67810.0,1.20980012]
[1718282911224,0.009449,67811.0,67810.0,0.97130012]
[1718282911442,0.010449,67811.0,67810.0,0.16328019]
[1718282911648,0.009449,67811.0,67810.0,0.21028019]
[1718282912296,0.010449,67811.0,67810.0,0.21328019]
[1718282912506,0.010449,67811.0,67810.0,0.21028019]
[1718282912507,0.009449,67811.0,67810.0,0.21028019]
[1718282914012,0.004449,67811.0,67810.0,0.21028019]
[1718282914240,0.004449,67811.0,67810.0,0.203]
[1718282914241,0.005449,67811.0,67810.0,0.203]
[1718282914480,0.005449,67811.0,67810.0,0.103]
[1718282914708,0.563749,67811.0,67810.0,0.05]
[1718282914920,0.563749,67811.0,67810.0,0.15]
[1718282915123,0.564749,67811.0,67810.0,0.153]
[1718282915570,0.563749,67811.0,67810.0,0.15]
[1718282915921,0.577749,67811.0,67810.0,0.15]
[1718282916340,0.577749,67811.0,67810.0,0.16028019]
[1718282916512,0.577749,67811.0,67810.0,0.15]
[1718282916718,0.577749,67811.0,67810.0,0.16028019]
[1718282917113,0.018449,67811.0,67810.0,0.16028019]
[1718282917324,0.018449,67811.0,67810.0,0.05]
[1718282918063,0.018449,67811.0,67808.0,0.05]
[1718282918282,0.004449,67811.0,67808.0,0.05]
[1718282918686,0.018449,67811.0,67808.0,0.05]
[1718282919103,0.004449,67811.0,67808.0,0.05]
[1718282919543,0.018449,67811.0,67808.0,0.05]
[1718282919970,0.018449,67811.0,67808.0,0.15]
[1718282920173,0.018449,67811.0,67810.0,0.1]
[1718282920632,0.018449,67811.0,67808.0,0.06028019]
[1718282920633,0.018449,67811.0,67808.0,0.05]
[1718282922030,0.018449,67811.0,67810.0,0.1]
[1718282922237,0.004449,67811.0,67809.0,0.05]
[1718282922453,0.004449,67811.0,67810.0,0.1]
[1718282922666,0.018449,67811.0,67810.0,0.11028019]
[1718282922882,0.018449,67811.0,67810.0,0.1]
[1718282922883,0.004449,67811.0,67810.0,0.1]
[1718282923314,0.018449,67811.0,67809.0,0.05]
[1718282923743,0.004449,67811.0,67809.0,0.05]
[1718282924184,0.018449,67811.0,67810.0,0.1]
[1718282924854,0.018449,67811.0,67809.0,0.05]
[1718282925517,0.004449,67811.0,67806.0,0.05]
[1718282925946,0.004449,67811.0,67801.0,0.05]
[1718282925947,0.1773,67809.0,67801.0,0.05]
[1718282926183,0.72251993,67808.0,67801.0,0.05]
[1718282926405,0.72251993,67808.0,67794.0,0.4718]
[1718282926634,0.1773,67796.0,67794.0,0.4718]
[1718282926856,0.2632,67795.0,67794.0,0.4718]
[1718282927536,0.29403812,67795.0,67794.0,0.4718]
[1718282927761,0.29403812,67795.0,67792.0,0.00086]
[1718282927762,0.3057,67794.0,67792.0,0.00086]
[1718282927979,0.14431993,67793.0,67792.0,0.00086]
[1718282928640,0.24431993,67793.0,67792.0,0.00086]
[1718282929904,0.51251993,67793.0,67792.0,0.00086]
[1718282930109,0.61207192,67793.0,67792.0,0.00086]
[1718282930321,0.92657192,67793.0,67792.0,0.00086]
[1718282930524,1.01510192,67793.0,67792.0,0.00086]
[1718282932030,1.00110192,67793.0,67792.0,0.00086]
[1718282932298,1.01510192,67793.0,67792.0,0.00086]
[1718282932772,0.99031993,67793.0,67792.0,0.00086]
[1718282933180,1.00431993,67793.0,67792.0,0.00086]
[1718282933595,0.99031993,67793.0,67792.0,0.00086]
[1718282933811,1.00431993,67793.0,67792.0,0.00086]
[1718282934506,0.014,67793.0,67792.0,0.00086]
[1718282935181,0.1773,67797.0,67792.0,0.00086]
[1718282935397,0.14431993,67796.0,67792.0,0.00086]
[1718282935615,0.014,67793.0,67792.0,0.00086]
[1718282935823,0.15831993,67793.0,67792.0,0.00086]
[1718282936064,0.24431993,67793.0,67792.0,0.00086]
[1718282936483,0.25831993,67793.0,67792.0,0.00086]
[1718282939034,0.85061993,67793.0,67792.0,0.00086]
[1718282939235,0.95341192,67793.0,67792.0,0.00086]
[1718282939560,1.01244392,67793.0,67792.0,0.00086]
[1718282940348,0.89565193,67793.0,67792.0,0.00086]
[1718282940904,0.90965193,67793.0,67792.0,0.00086]
[1718282945343,1.08695193,67793.0,67792.0,0.00086]
[1718282945775,1.17548193,67793.0,67792.0,0.00086]
[1718282946214,1.18432951,67793.0,67792.0,0.00086]
[1718282946447,1.32137722,67793.0,67792.0,0.00086]
[1718282946684,1.31252964,67793.0,67792.0,0.00086]
[1718282947111,1.61857924,67793.0,67792.0,0.00086]
[1718282947549,1.61857813,67793.0,67792.0,0.00086]
[1718282949057,1.61857813,67793.0,67769.0,0.4718]
[1718282949058,0.3253,67790.0,67769.0,0.4718]
[1718282949292,0.1773,67773.0,67769.0,0.1]
[1718282949504,0.0973755,67786.0,67772.0,0.1]
[1718282949505,0.1773,67779.0,67772.0,0.1]
[1718282949717,0.1,67778.0,67768.0,0.05]
[1718282950336,0.1,67778.0,67768.0,0.15]
[1718282950556,0.1,67778.0,67768.0,0.05]
[1718282951239,0.1773,67773.0,67765.0,0.1]
[1718282951502,0.1773,67767.0,67761.0,0.00086]
[1718282951821,0.14431993,67766.0,67762.0,0.07215996]
[1718282952004,0.03216199,67765.0,67762.0,0.17215996]
[1718282952215,0.14431993,67765.0,67762.0,0.17215996]
[1718282952834,0.14431993,67765.0,67762.0,0.07215996]
[1718282953242,0.14431993,67765.0,67761.0,0.00086]
[1718282953476,0.14431993,67765.0,67762.0,0.001]
[1718282953477,0.17648192,67764.0,67762.0,0.001]
[1718282953687,0.14431993,67764.0,67762.0,0.001]
[1718282953887,0.14431993,67764.0,67761.0,0.00086]
[1718282957066,0.15831993,67764.0,67761.0,0.00086]
[1718282957271,0.17231993,67764.0,67761.0,0.00086]
[1718282957438,0.03584591,67763.0,67761.0,0.00086]
[1718282957686,0.14431993,67762.0,67761.0,0.00086]
[1718282958151,0.32161993,67762.0,67761.0,0.00086]
[1718282958618,0.3304591,67762.0,67761.0,0.00086]
[1718282959059,0.32161993,67762.0,67761.0,0.00086]
[1718282959677,0.35606578,67762.0,67761.0,0.00086]
[1718282960092,0.32161993,67762.0,67761.0,0.00086]
[1718282960317,0.14431993,67762.0,67761.0,0.10086]
[1718282960525,0.14431993,67762.0,67752.0,0.05]
[1718282960526,0.01811585,67761.0,67731.0,0.009416]
[1718282960701,0.01811585,67761.0,67739.0,0.43295979]
[1718282960702,0.2486,67747.0,67739.0,0.43295979]
[1718282960948,0.1773,67735.0,67731.0,0.009416]
[1718282961541,0.24431993,67734.0,67731.0,0.009416]
[1718282961777,0.04304586,67733.0,67731.0,0.009416]
[1718282961967,0.19620443,67733.0,67731.0,0.009416]
[1718282962163,0.24431993,67733.0,67731.0,0.009416]
[1718282963733,0.25831993,67733.0,67731.0,0.009416]
[1718282964361,0.25831993,67733.0,67732.0,0.109416]
[1718282964572,0.43561993,67733.0,67732.0,0.109416]
[1718282966517,0.028,67733.0,67732.0,0.73729619]
[1718282966727,0.00883864,67748.0,67732.0,0.73729619]
[1718282966728,0.00883864,67749.0,67737.0,0.05]
[1718282966938,0.14431993,67748.0,67745.0,0.1]
[1718282967067,0.14431993,67748.0,67735.0,0.15]
[1718282967068,0.1773,67746.0,67735.0,0.15]
[1718282967271,0.1773,67739.0,67738.0,0.11028019]
[1718282968148,0.32161993,67739.0,67738.0,0.11028019]
[1718282968895,0.01805423,67751.0,67735.0,0.05]
[1718282968896,0.01805423,67751.0,67749.0,0.1]
[1718282969112,0.32161993,67750.0,67749.0,0.1]
[1718282969314,0.42161993,67750.0,67749.0,0.1]
[1718282969537,0.42161993,67750.0,67738.0,0.1]
[1718282969747,0.1773,67742.0,67741.0,0.1]
[1718282969945,0.32161993,67742.0,67741.0,0.1]
[1718282970319,0.32161993,67742.0,67741.0,0.11028019]
[1718282970521,0.08853,67756.0,67750.0,0.11028019]
[1718282970522,0.014,67751.0,67750.0,0.11028019]
[1718282971426,0.014,67751.0,67750.0,0.22028019]
[1718282972707,0.1773,67764.0,67763.0,0.11028019]
[1718282972965,0.1773,67764.0,67752.0,0.15]
[1718282972966,0.33934993,67764.0,67752.0,0.15]
[1718282973196,0.1773,67753.0,67752.0,0.16028019]
[1718282973418,0.32161993,67753.0,67752.0,0.16028019]
[1718282974058,0.1,67763.0,67760.0,0.1]
[1718282974272,0.1773,67761.0,67760.0,0.1]
[1718282974471,0.32161993,67761.0,67760.0,0.1]
[1718282974884,0.32161993,67761.0,67754.0,0.1]
[1718282975091,0.1773,67755.0,67754.0,0.1]
[1718282975265,0.32161993,67755.0,67754.0,0.1]
[1718282975881,0.32161993,67755.0,67754.0,0.11028019]
[1718282976254,0.32161993,67755.0,67754.0,0.1]
[1718282976658,0.32161993,67755.0,67750.0,0.1]
[1718282976876,0.14431993,67754.0,67750.0,0.1]
[1718282977320,0.14431993,67754.0,67740.0,0.05]
[1718282977321,0.1,67753.0,67744.0,0.1]
[1718282977543,0.1,67753.0,67737.0,0.05]
[1718282977544,0.1773,67749.0,67737.0,0.05]
[1718282977762,0.1773,67749.0,67732.0,0.01969619]
[1718282977763,0.1773,67743.0,67733.0,0.05]
[1718282978023,0.14431993,67742.0,67733.0,0.05]
[1718282978239,0.14431993,67742.0,67732.0,0.009416]
[1718282978240,0.1773,67736.0,67732.0,0.009416]
[1718282978435,0.14431993,67735.0,67732.0,0.009416]
[1718282979258,0.1,67734.0,67732.0,0.009416]
[1718282979462,0.14431993,67733.0,67732.0,0.009416]
[1718282979662,0.24431993,67733.0,67732.0,0.009416]
[1718282980939,0.25831993,67733.0,67732.0,0.009416]
[1718282981499,0.24431993,67733.0,67732.0,0.009416]
[1718282981693,0.24431993,67733.0,67728.0,0.1]
[1718282982283,0.25831993,67733.0,67727.0,0.00856]
[1718282983803,0.27231993,67733.0,67727.0,0.00856]
[1718282984271,0.25831993,67733.0,67727.0,0.00856]
[1718282984522,0.28788192,67733.0,67727.0,0.00856]
[1718282984740,0.05908,67732.0,67727.0,0.00856]
[1718282984975,0.14431993,67731.0,67727.0,0.00856]
[1718282986281,0.15831993,67731.0,67727.0,0.00856]
[1718282986971,0.32161993,67728.0,67727.0,0.00856]
[1718282987200,1.13434512,67728.0,67727.0,0.00856]
[1718282987434,1.44069654,67728.0,67727.0,0.00856]
[1718282987638,1.20125351,67728.0,67727.0,0.00856]
[1718282987839,1.50762172,67728.0,67727.0,0.00856]
[1718282988074,1.50761546,67728.0,67727.0,0.00856]
[1718282988497,1.13434512,67728.0,67727.0,0.00856]
[1718282988697,0.97451993,67728.0,67727.0,0.00856]
[1718282988966,0.98851993,67728.0,67727.0,0.00856]
[1718282989171,0.43561993,67728.0,67727.0,0.00856]
[1718282989598,0.44961993,67728.0,67727.0,0.00856]
[1718282990121,0.43561993,67728.0,67727.0,0.00856]
[1718282990330,0.44961993,67728.0,67727.0,0.00856]
[1718282990737,0.46361993,67728.0,67727.0,0.00856]
[1718282991136,0.44961993,67728.0,67727.0,0.00856]
[1718282991541,0.46361993,67728.0,67727.0,0.00856]
[1718282991743,0.49224612,67728.0,67727.0,0.00856]
[1718282992145,0.25831993,67728.0,67727.0,0.00856]
[1718282992359,0.24431993,67728.0,67727.0,0.00856]
[1718282992761,0.43561993,67728.0,67727.0,0.00856]
[1718282994249,0.42161993,67728.0,67727.0,0.00856]
[1718282994488,0.43561993,67728.0,67727.0,0.00856]
[1718282995035,0.42161993,67728.0,67727.0,0.00856]
[1718282995610,0.43561993,67728.0,67727.0,0.00856]
[1718282995755,0.4868302,67728.0,67727.0,0.00856]
[1718282995967,0.44961993,67728.0,67727.0,0.00856]
[1718282996364,0.43561993,67728.0,67727.0,0.00856]
[1718282996790,0.44961993,67728.0,67727.0,0.00856]
[1718282997221,0.43561993,67728.0,67727.0,0.00856]
[1718282997425,0.42161993,67728.0,67727.0,0.00856]
[1718282997630,0.43561993,67728.0,67727.0,0.00856]
[1718282997838,0.44961993,67728.0,67727.0,0.00856]
[1718282998044,0.4882302,67728.0,67727.0,0.00856]
[1718282998266,0.4742302,67728.0,67727.0,0.00856]
[1718282998682,0.5022302,67728.0,67727.0,0.00856]
[1718282999336,0.4882302,67728.0,67727.0,0.00856]
[1718283000054,0.8868602,67728.0,67727.0,0.00856]
[1718283000465,0.9008602,67728.0,67727.0,0.00856]
[1718283000894,0.8868602,67728.0,67727.0,0.00856]
[1718283001118,0.9008602,67728.0,67727.0,0.00856]
[1718283001331,0.9148602,67728.0,67727.0,0.00856]
[1718283001543,0.9008602,67728.0,67727.0,0.00856]
[1718283001758,0.8868602,67728.0,67727.0,0.00856]
[1718283001972,0.9008602,67728.0,67727.0,0.00856]
[1718283002186,0.9148602,67728.0,67727.0,0.00856]
[1718283002832,0.9008602,67728.0,67727.0,0.00856]
[1718283003442,0.8868602,67728.0,67727.0,0.00856]
[1718283003968,0.9008602,67728.0,67727.0,0.00856]
[1718283004332,1.1557602,67728.0,67727.0,0.00856]
[1718283004538,1.1697602,67728.0,67727.0,0.00856]
[1718283004750,1.1557602,67728.0,67727.0,0.00856]
[1718283004933,1.4230137,67728.0,67727.0,0.00856]
[1718283005133,1.1417602,67728.0,67727.0,0.00856]
[1718283005354,1.46342808,67728.0,67727.0,0.00856]
[1718283005556,1.1697602,67728.0,67727.0,0.00856]
[1718283007145,1.1557602,67728.0,67727.0,0.00856]
[1718283007352,1.44643305,67728.0,67727.0,0.00856]
[1718283007779,0.56299278,67728.0,67727.0,0.00856]
[1718283007980,0.53499278,67728.0,67727.0,0.00856]
[1718283008223,0.14431993,67728.0,67727.0,0.56976]
[1718283008485,0.15831993,67728.0,67727.0,0.68004019]
[1718283008692,0.05908,67732.0,67731.0,0.11028019]
[1718283008898,0.14431993,67732.0,67731.0,0.11028019]
[1718283009645,0.14431993,67732.0,67731.0,0.1]